fUST/lending_fUST_20260424
["ID","MTS","AMOUNT","RATE_DAILY","PERIOD"]
[421096465,1777035040454,-500.0,0.00017175,2]
[421096466,1777035040463,-500.0,0.00017175,2]
[421096468,1777035040473,-500.0,0.00017175,2]
[421096469,1777035040482,-500.0,0.00017175,2]
[421096470,1777035040491,-500.0,0.00017175,2]
[421096471,1777035040501,-500.0,0.00017175,2]
[421096472,1777035040510,-529.58445149,0.00017175,2]
[421096473,1777035040519,-500.0,0.00017175,2]
[421096474,1777035040528,-500.0,0.00017175,2]
[421096475,1777035040538,-500.0,0.00017175,2]
[421096476,1777035040548,-500.0,0.00017175,2]
[421096477,1777035040557,-500.0,0.00017175,2]
[421096478,1777035040567,-500.0,0.00017175,2]
[421096479,1777035040577,-500.0,0.00017175,2]
[421096480,1777035040588,-500.0,0.00017175,2]
[421096481,1777035040598,-500.0,0.00017175,2]
[421096482,1777035040608,-500.0,0.00017175,2]
[421096483,1777035040619,-500.0,0.00017175,2]
[421096484,1777035040629,-500.0,0.00017175,2]
[421096485,1777035040639,-500.0,0.00017175,2]
[421096486,1777035040648,-500.0,0.00017175,2]
[421096487,1777035040658,-500.0,0.00017175,2]
[421096488,1777035040668,-500.0,0.00017175,2]
[421096489,1777035040677,-500.0,0.00017175,2]
[421096490,1777035040687,-500.0,0.00017175,2]
[421096491,1777035040697,-500.0,0.00017175,2]
[421096492,1777035040706,-500.0,0.00017175,2]
[421096493,1777035040716,-500.0,0.00017175,2]
[421096494,1777035040726,-500.0,0.00017175,2]
[421096495,1777035040735,-500.0,0.00017175,2]
[421096496,1777035040745,-500.0,0.00017175,2]
[421096497,1777035040754,-500.0,0.00017177,2]
[421096498,1777035040764,-500.0,0.00017177,2]
[421096499,1777035040773,-500.0,0.00017177,2]
[421096500,1777035040783,-500.0,0.00017177,2]
[421096501,1777035040792,-500.0,0.00017177,2]
[421096502,1777035040801,-500.0,0.00017177,2]
[421096503,1777035040811,-500.0,0.00017177,2]
[421096504,1777035040820,-291.84526023,0.00017177,2]
[421096505,1777035040830,-500.0,0.00017177,2]
[421096506,1777035040839,-500.0,0.00017177,2]
[421096507,1777035040849,-500.0,0.00017177,2]
[421096508,1777035040859,-500.0,0.00017177,2]
[421096509,1777035040868,-500.0,0.00017177,2]
[421096510,1777035040877,-500.0,0.00017177,2]
[421096511,1777035040887,-570.70666269,0.00017177,2]
[421096512,1777035040896,-204.73224755,0.00017177,2]
[421096513,1777035040905,-500.0,0.00017177,2]
[421096514,1777035040915,-500.0,0.00017177,2]
[421096515,1777035040924,-500.0,0.00017177,2]
[421096516,1777035040934,-500.0,0.00017177,2]
[421096517,1777035040944,-647.89399347,0.00017177,2]
[421096518,1777035040953,-500.0,0.00017177,2]
[421096519,1777035040963,-500.0,0.00017177,2]
[421096520,1777035040972,-238.92694494,0.00017177,2]
[421096521,1777035040982,-151.5,0.00017177,2]
[421096522,1777035040992,-151.5,0.00017177,2]
[421096523,1777035041001,-189.8910884,0.00017177,2]
[421096524,1777035041011,-500.0,0.00017177,2]
[421096525,1777035041020,-506.53357746,0.00017177,2]
[421096526,1777035041030,-799.0,0.00017177,2]
[421096527,1777035041039,-799.0,0.00017177,2]
[421096528,1777035041048,-799.0,0.00017177,2]
[421096529,1777035041058,-799.0,0.00017177,2]
[421096530,1777035041067,-799.0,0.00017177,2]
[421096531,1777035041077,-238.42099364,0.00017177,2]
[421096532,1777035041097,-560.57900636,0.00017177,2]
[421096533,1777035041107,-799.0,0.00017177,2]
[421096534,1777035041117,-799.0,0.00017177,2]
[421096535,1777035041127,-799.0,0.00017177,2]
[421096536,1777035041137,-799.0,0.00017177,2]
[421096537,1777035041148,-799.0,0.00017177,2]
[421096538,1777035041158,-799.0,0.00017177,2]
[421096539,1777035041168,-799.0,0.00017177,2]
[421096540,1777035041179,-799.0,0.00017177,2]
[421096541,1777035041190,-799.0,0.00017177,2]
[421096542,1777035041201,-799.0,0.00017177,2]
[421096543,1777035041213,-799.0,0.00017177,2]
[421096544,1777035041224,-799.0,0.00017177,2]
[421096545,1777035041233,-799.0,0.00017177,2]
[421096546,1777035041243,-799.0,0.00017177,2]
[421096547,1777035041253,-799.0,0.00017177,2]
[421096548,1777035041262,-799.0,0.00017177,2]
[421096549,1777035041271,-799.0,0.00017177,2]
[421096550,1777035041280,-150.0,0.00017177,2]
[421096551,1777035041290,-812.06469156,0.00017177,2]
[421096552,1777035041349,-150.0,0.00017177,2]
[421096553,1777035041358,-150.0,0.00017177,2]
[421096554,1777035041368,-150.0,0.00017177,2]
[421096555,1777035041377,-150.0,0.00017177,2]
[421096556,1777035041386,-150.0,0.00017177,2]
[421096557,1777035041395,-384.77400272,0.00017349,2]
[421096558,1777035041404,-490000.65474027,0.0001735,2]
[421096559,1777035041414,-200.24633161,0.000174,2]
[421096560,1777035041423,-216.6,0.0001741,2]
[421096561,1777035041432,-600.0,0.00017437,2]
[421096562,1777035041441,-886727.60416364,0.0001745,2]
[421096563,1777035041544,-2054.15352454,0.0001745,2]
[421096564,1777035041620,-5142.75770885,0.0001745,2]
[421096565,1777035041631,-1549.6017491,0.0001745,2]
[421096573,1777035047714,-3638.23000536,0.00017005,2]
[421096574,1777035047725,-150.0,0.00017177,2]
[421096575,1777035047736,-10771.11357179,0.0001745,2]
[421096576,1777035047748,-14455.8229591,0.0001745,2]
[421096587,1777035048500,-1850.23300645,0.0001745,2]
[421096588,1777035048821,-2345.4,0.0001745,2]
[421096589,1777035048878,-4177.47778571,0.0001745,2]
[421096590,1777035048941,-13197.89567515,0.0001745,2]
[421096596,1777035147974,661.0,9.3e-05,2]
[421096598,1777035681527,-1000.0,0.00013699,2]
[421096599,1777035681556,-615.0,0.00013699,2]
[421096600,1777035681585,-171.85556678,0.00014824,2]
[421096616,1777035698320,-531.606235,0.00016,2]
[421096617,1777035698347,-305.6,0.00016438,2]
[421096618,1777035698636,-531.606235,0.00016438,2]
[421096619,1777035698651,-175.273765,0.00016438,2]
[421096620,1777035698661,-130.326235,0.00016587,2]
[421096621,1777035698672,-355.55641724,0.00016587,2]
[421096622,1777035727510,-442.0,0.00016018,2]
[421096623,1777035727539,-166.66666666,0.00016338,2]
[421096624,1777035727567,-14.11734776,0.00016587,2]
[421096625,1777035727595,-235.68753794,0.00016762,2]
[421096626,1777035727608,-69.91246206,0.00016762,2]
[421096627,1777035727618,-372.08753794,0.00016762,2]
[421096628,1777035727630,-154.08246206,0.00016762,2]
[421096629,1777035727639,-12.5842046,0.00016824,2]
[421096630,1777035727655,-14.11734776,0.00016824,2]
[421096631,1777035727671,-176.08801644,0.00016824,2]
[421096632,1777035727681,-129.51198356,0.00016898,2]
[421096634,1777036156078,-304.97,0.00012,7]
[421096635,1777036156101,-164.36266407,0.00012713,2]
[421096636,1777036156122,-600.0,0.00012713,2]
[421096637,1777036156143,-5000.0,0.00013426,2]
[421096638,1777036156164,-1007.41635634,0.00013562,2]
[421096639,1777036156185,-1000.0,0.00013699,2]
[421096640,1777036156206,-193.9479436,0.00014713,2]
[421096641,1777036156226,-300.0,0.0001568,2]
[421096642,1777036156248,-300.0,0.00015889,2]
[421096643,1777036156272,-105853.12267439,0.0001589,2]
[421096715,1777036240480,-300.0,0.0001573,2]
[421096716,1777036240490,-5000.0,0.00015731,2]
[421096717,1777036240500,-648.0,0.00015731,2]
[421096718,1777036240518,-344.5709022,0.0001579,2]
[421096732,1777036240817,-491.03,0.0001579,2]
[421096733,1777036240827,-493.8749479,0.00015889,2]
[421096734,1777036240836,-102955.50071416,0.0001589,3]
[421096735,1777036240852,-49986.56031463,0.0001589,3]
[421096736,1777036240863,-5675.334293,0.0001589,3]
[421096737,1777036240879,-1371.56040115,0.0001589,3]
[421096781,1777036243960,-500.0,0.00015889,2]
[421096782,1777036243970,-500.0,0.00015889,2]
[421096783,1777036243979,-500.0,0.00015889,2]
[421096784,1777036243988,-490.70963771,0.00015889,2]
[421096790,1777036247800,-9.29036229,0.00015889,2]
[421096791,1777036247811,-500.0,0.00015889,2]
[421096792,1777036247821,-372.86483743,0.00015889,2]
[421096793,1777036247832,-500.0,0.00015889,2]
[421096794,1777036247841,-500.0,0.00015889,2]
[421096795,1777036247850,-500.0,0.00015889,2]
[421096796,1777036247859,-500.0,0.00015889,2]
[421096797,1777036247869,-500.0,0.00015889,2]
[421096798,1777036247879,-279.89029986,0.00015889,2]
[421096801,1777036682227,-5000.0,0.00013425,2]
[421096802,1777036682252,-611.0,0.00013425,2]
[421096803,1777036682277,-1000.0,0.00013699,2]
[421096804,1777036682304,-300.0,0.00013832,2]
[421096805,1777036682331,-300.0,0.00013832,2]
[421096806,1777036682358,-300.0,0.00013832,2]
[421096807,1777036682385,-300.0,0.00013832,2]
[421096808,1777036682413,-300.0,0.00013832,2]
[421096809,1777036682438,-300.0,0.00013832,2]
[421096810,1777036682464,-300.0,0.00013832,2]
[421096811,1777036682490,-300.0,0.00013832,2]
[421096812,1777036682515,-300.0,0.00013832,2]
[421096813,1777036682540,-300.0,0.00013832,2]
[421096814,1777036682565,-300.0,0.00013832,2]
[421096815,1777036682591,-300.0,0.00013832,2]
[421096816,1777036682617,-300.0,0.00013832,2]
[421096817,1777036682643,-300.0,0.00013832,2]
[421096818,1777036682669,-300.0,0.00013832,2]
[421096819,1777036682694,-162.40398123,0.00014636,2]
[421096820,1777036682718,-165.73666726,0.00015572,2]
[421096821,1777036682741,-287.0,0.00015699,2]
[421096822,1777036682766,-615.18180799,0.000157,2]
[421096823,1777036682792,-1344.28714109,0.000157,2]
[421096824,1777036682815,-200.19347378,0.000157,2]
[421096825,1777036682840,-586.36534791,0.000157,2]
[421096826,1777036682862,-460.0,0.0001588,2]
[421096827,1777036682890,-500.0,0.00015887,2]
[421096828,1777036682915,-500.0,0.00015887,2]
[421096829,1777036682941,-500.0,0.00015887,2]
[421096830,1777036682966,-500.0,0.00015887,2]
[421096831,1777036682993,-500.0,0.00015887,2]
[421096832,1777036683016,-500.0,0.00015887,2]
[421096833,1777036683042,-313.28388913,0.00015887,2]
[421096834,1777036683068,-500.0,0.00015887,2]
[421096835,1777036683092,-500.0,0.00015887,2]
[421096836,1777036683116,-500.0,0.00015887,2]
[421096837,1777036683142,-500.0,0.00015887,2]
[421096838,1777036683166,-285.38521387,0.00015887,2]
[421096839,1777036683191,-500.0,0.00015887,2]
[421096840,1777036683217,-500.0,0.00015887,2]
[421096841,1777036683240,-500.0,0.00015887,2]
[421096842,1777036683264,-21219.93427706,0.00015888,3]
[421096843,1777036683288,-345.71246353,0.00015889,2]
[421096844,1777036683315,-126403.51573715,0.0001589,2]
[421096956,1777037232083,-175.65797028,0.00012,2]
[421096957,1777037232103,-601.0,0.00012764,2]
[421096958,1777037232123,-1330.51422716,0.00012765,2]
[421096965,1777037432831,-3669.48577284,0.00012511,2]
[421096966,1777037432842,-597.0,0.00012511,2]
[421096967,1777037432853,-159.1559016,0.00012574,2]
[421096968,1777037432864,-2045.46345301,0.00012637,2]
[421097035,1777037439088,-2954.53654699,0.00012637,2]
[421097036,1777037439097,-175.65797028,0.00013204,7]
[421097037,1777037439107,-301.49953946,0.00013451,2]
[421097038,1777037439116,-300.0,0.00013551,2]
[421097039,1777037439126,-15739.47225036,0.00013552,2]
[421097040,1777037439136,-500.0,0.00013554,2]
[421097041,1777037439145,-300.0,0.00013555,2]
[421097042,1777037439155,-300.0,0.00013555,2]
[421097043,1777037439165,-300.0,0.00013555,2]
[421097044,1777037439175,-300.0,0.00013555,2]
[421097045,1777037439184,-300.0,0.00013555,2]
[421097046,1777037439194,-300.0,0.00013555,2]
[421097047,1777037439203,-300.0,0.00013555,2]
[421097048,1777037439212,-300.0,0.00013555,2]
[421097049,1777037439222,-300.0,0.00013555,2]
[421097050,1777037439232,-300.0,0.00013555,2]
[421097051,1777037439241,-300.0,0.00013555,2]
[421097052,1777037439251,-300.0,0.00013555,2]
[421097053,1777037439260,-300.0,0.00013555,2]
[421097054,1777037439270,-300.0,0.00013555,2]
[421097055,1777037439279,-300.0,0.00013555,2]
[421097056,1777037439289,-1000.0,0.00013699,2]
[421097057,1777037439298,-500.0,0.00013828,2]
[421097058,1777037439308,-500.0,0.00014102,2]
[421097059,1777037439318,-500.0,0.00014376,2]
[421097060,1777037439327,-175.65797028,0.00014408,7]
[421097061,1777037439337,-301.4995394,0.00014568,2]
[421097062,1777037439346,-187.80396389,0.00014574,2]
[421097063,1777037439355,-420.0,0.00014853,2]
[421097064,1777037439365,-1371.560401,0.0001542,3]
[421097065,1777037439374,-160.566,0.00015472,2]
[421097066,1777037439383,-311.75,0.000155,2]
[421097067,1777037439393,-175.65797028,0.00015613,14]
[421097068,1777037439402,-3058.60159548,0.00015636,2]
[421097069,1777037439411,-113435.29431906,0.00015638,2]
[421097070,1777037439423,-2383.16828199,0.00015638,2]
[421097072,1777037439550,-234.13024416,0.00015638,2]
[421097079,1777037440472,-78072.95994691,0.00015638,2]
[421097092,1777037443182,-7112.57318528,0.00015638,2]
[421097093,1777037443204,-611.5071887,0.00015638,2]
[421097101,1777037447938,-500.0,0.00013551,2]
[421097102,1777037447948,-500.0,0.00013551,2]
[421097103,1777037447957,-500.0,0.00013551,2]
[421097104,1777037447966,-500.0,0.00013551,2]
[421097105,1777037447975,-500.0,0.00013551,2]
[421097106,1777037447985,-500.0,0.00013551,2]
[421097107,1777037447994,-500.0,0.00013551,2]
[421097108,1777037448003,-500.0,0.00013551,2]
[421097109,1777037448012,-500.0,0.00013551,2]
[421097110,1777037448021,-500.0,0.00013551,2]
[421097111,1777037448030,-500.0,0.00013551,2]
[421097112,1777037448039,-500.0,0.00013551,2]
[421097113,1777037448048,-500.0,0.00013551,2]
[421097114,1777037448057,-500.0,0.00013551,2]
[421097115,1777037448066,-500.0,0.00013551,2]
[421097116,1777037448075,-569.7949911,0.00013551,2]
[421097117,1777037448085,-20508.61133005,0.00015638,2]
[421097118,1777037481403,-445.71024942,0.00013551,2]
[421097431,1777038638857,-5000.0,9.412e-05,2]
[421097433,1777038638866,-552.0,9.412e-05,2]
[421097434,1777038638877,-1200.0,9.506e-05,2]
[421097435,1777038638886,-5000.0,9.507e-05,2]
[421097436,1777038638895,-300.0,9.602e-05,2]
[421097438,1777038638905,-300.0,9.602e-05,2]
[421097439,1777038638914,-300.0,9.602e-05,2]
[421097441,1777038638923,-300.0,9.602e-05,2]
[421097442,1777038638932,-1078.47346362,9.603e-05,2]
[421097444,1777038638942,-299.14,9.7e-05,2]
[421097446,1777038638952,-300.0,9.8e-05,2]
[421097447,1777038638961,-241.68716086,9.95e-05,2]
[421097448,1777038638970,-32071.06369333,9.996e-05,2]
[421097449,1777038638980,-300.0,9.996e-05,2]
[421097450,1777038638990,-300.0,9.996e-05,2]
[421097451,1777038638999,-300.0,9.996e-05,2]
[421097452,1777038639009,-300.0,9.996e-05,2]
[421097453,1777038639017,-300.0,9.996e-05,2]
[421097454,1777038639027,-300.0,9.996e-05,2]
[421097455,1777038639036,-300.0,9.996e-05,2]
[421097456,1777038639045,-300.0,9.996e-05,2]
[421097457,1777038639054,-300.0,9.996e-05,2]
[421097458,1777038639063,-300.0,9.996e-05,2]
[421097459,1777038639072,-300.0,9.996e-05,2]
[421097460,1777038639081,-300.0,9.996e-05,2]
[421097461,1777038639090,-300.0,9.996e-05,2]
[421097462,1777038639100,-300.0,9.996e-05,2]
[421097463,1777038639108,-300.0,9.996e-05,2]
[421097464,1777038639118,-364.32513738,0.0001,2]
[421097465,1777038639127,-600.0,0.00010195,2]
[421097466,1777038639136,-1680.0,0.00010457,2]
[421097467,1777038639145,-420.0,0.00010562,2]
[421097468,1777038639154,-420.0,0.00010562,2]
[421097469,1777038639163,-420.0,0.00010562,2]
[421097470,1777038639172,-420.0,0.00010562,2]
[421097471,1777038639182,-209.0,0.0001078,2]
[421097472,1777038639191,-720.0,0.00011214,2]
[421097473,1777038639200,-1171.29062415,0.000113,2]
[421097474,1777038639210,-2000.0,0.000114,2]
[421097475,1777038639219,-2000.0,0.000115,2]
[421097476,1777038639228,-2351.0,0.00011502,2]
[421097477,1777038639237,-2000.0,0.000116,2]
[421097478,1777038639247,-587.0,0.00011618,2]
[421097479,1777038639256,-300.0,0.00011618,2]
[421097480,1777038639265,-587.0,0.00011618,2]
[421097481,1777038639274,-587.0,0.00011618,2]
[421097482,1777038639283,-159.97409204,0.00011698,2]
[421097483,1777038639293,-2000.0,0.000117,2]
[421097484,1777038639302,-183.99,0.00011741,2]
[421097485,1777038639312,-500.0,0.000118,2]
[421097486,1777038639321,-2000.0,0.000118,2]
[421097487,1777038639330,-2000.0,0.000119,2]
[421097488,1777038639339,-285.19084981,0.0001195,2]
[421097489,1777038639349,-3821.0,0.00012,2]
[421097490,1777038639359,-281.57343812,0.00012007,2]
[421097491,1777038639368,-500.0,0.00012074,2]
[421097492,1777038639378,-3289.88651579,0.00012213,2]
[421097493,1777038639387,-864.0,0.00012336,2]
[421097494,1777038639397,-500.0,0.00012348,2]
[421097495,1777038639406,-250.0,0.00012436,2]
[421097496,1777038639416,-400.40486205,0.000125,2]
[421097497,1777038639426,-500.0,0.00012607,2]
[421097498,1777038639435,-500.0,0.00012622,2]
[421097499,1777038639445,-3292.0,0.00012652,2]
[421097500,1777038639455,-823.0,0.0001278,2]
[421097501,1777038639465,-321.0,0.0001278,2]
[421097502,1777038639475,-495.0,0.0001278,2]
[421097503,1777038639484,-459.01766619,0.000129,2]
[421097504,1777038639493,-459.01766612,0.000129,2]
[421097505,1777038639503,-200.0,0.00013151,2]
[421097506,1777038639512,-200.14275595,0.00013151,2]
[421097507,1777038639522,-411.40096524,0.00013233,14]
[421097508,1777038639531,-1000.0,0.00013569,2]
[421097509,1777038639541,-500.0,0.00013698,2]
[421097510,1777038639550,-500.0,0.00013698,2]
[421097511,1777038639560,-500.0,0.00013698,2]
[421097512,1777038639570,-1000.0,0.00013699,2]
[421097513,1777038639579,-4609.0,0.00013918,2]
[421097514,1777038639588,-328.69453876,0.0001395,2]
[421097515,1777038639598,-459.01766612,0.00014015,2]
[421097516,1777038639607,-1152.0,0.00014058,2]
[421097517,1777038639618,-163.6,0.00014216,2]
[421097518,1777038639628,-220.79,0.00014695,2]
[421097519,1777038639638,-1000.0,0.00014926,2]
[421097520,1777038639647,-244.0,0.00014926,2]
[421097521,1777038639657,-311.75,0.00015,2]
[421097522,1777038639667,-257.59,0.00015014,2]
[421097523,1777038639676,-287.9851576,0.00015018,2]
[421097524,1777038639686,-454.5625971,0.00015018,2]
[421097526,1777038639696,-325.3967881,0.00015018,2]
[421097527,1777038639706,-325.424704,0.00015018,2]
[421097528,1777038639715,-455.8385479,0.00015021,2]
[421097529,1777038639725,-455.8385479,0.00015035,2]
[421097530,1777038639734,-455.8715388,0.00015035,2]
[421097531,1777038639743,-526.16,0.00015203,2]
[421097532,1777038639753,-220022.99964495,0.00015307,2]
[421097533,1777038639765,-3500.0,0.00015307,2]
[421097534,1777038639780,-4253.77046772,0.00015307,2]
[421097535,1777038639791,-1272.40470124,0.00015307,2]
[421097536,1777038639802,-411.86652827,0.00015307,2]
[421097537,1777038639814,-312768.14658388,0.00015307,2]
[421097550,1777038640029,-6453.0,0.0001531,2]
[421097553,1777038640039,-327.22,0.00015333,2]
[421097555,1777038640049,-662.39,0.00015333,2]
[421097557,1777038640059,-5485.53234404,0.00015338,2]
[421097559,1777038640068,-3637.39619654,0.00015438,2]
[421097561,1777038640077,-1613.0,0.00015464,2]
[421097563,1777038640086,-459.01766612,0.00015466,2]
[421097565,1777038640095,-152.0,0.00015483,7]
[421097567,1777038640104,-152.0,0.00015483,7]
[421097569,1777038640113,-152.0,0.00015483,7]
[421097571,1777038640122,-152.0,0.00015483,7]
[421097573,1777038640132,-152.0,0.00015499,7]
[421097575,1777038640141,-152.0,0.00015499,7]
[421097577,1777038640150,-152.0,0.00015499,7]
[421097579,1777038640160,-152.0,0.00015499,7]
[421097581,1777038640169,-13213.340899,0.00015508,2]
[421097583,1777038640178,-20318.7144779,0.00015508,2]
[421097585,1777038640187,-3639.9223621,0.00015508,2]
[421097587,1777038640196,-59718.0736727,0.00015508,2]
[421097589,1777038640205,-2694.5896145,0.00015508,2]
[421097591,1777038640215,-500.0,0.00015637,2]
[421097593,1777038640224,-500.0,0.00015637,2]
[421097595,1777038640233,-205.71899203,0.00015637,2]
[421097597,1777038640242,-1549.4793374,0.000157,2]
[421097598,1777038640252,-965.8093524,0.000157,2]
[421097601,1777038640262,-151.0,0.00015857,2]
[421097603,1777038640271,-327.8533943,0.00015857,2]
[421097605,1777038640279,-325.3967881,0.00015857,2]
[421097607,1777038640288,-210.6966713,0.00015857,2]
[421097609,1777038640298,-325.3967881,0.00015857,2]
[421097611,1777038640308,-1000.0,0.0001589,2]
[421097613,1777038640317,-1000.0,0.0001589,2]
[421097615,1777038640326,-667.42656494,0.0001589,2]
[421097617,1777038640336,-157.848203,0.0001589,2]
[421097620,1777038640345,-157.848203,0.0001589,2]
[421097622,1777038640355,-157.848203,0.0001589,2]
[421097624,1777038640365,-157.848203,0.0001589,2]
[421097626,1777038640374,-1000.0,0.0001589,2]
[421097628,1777038640384,-1000.0,0.0001589,2]
[421097630,1777038640393,-1000.0,0.0001589,2]
[421097632,1777038640403,-1000.0,0.0001589,2]
[421097634,1777038640413,-1003.55326239,0.0001589,2]
[421097636,1777038640422,-180.71324674,0.0001589,2]
[421097638,1777038640431,-151.0,0.0001589,2]
[421097639,1777038640441,-151.0,0.0001589,2]
[421097641,1777038640450,-151.0,0.0001589,2]
[421097642,1777038640459,-151.0,0.0001589,2]
[421097643,1777038640469,-151.0,0.0001589,2]
[421097644,1777038640479,-151.0,0.0001589,2]
[421097645,1777038640488,-153.63208545,0.0001589,2]
[421097646,1777038640497,-372.19822772,0.0001595,2]
[421097648,1777038640506,-1409.0,0.00015976,2]
[421097649,1777038640516,-646.0,0.00015976,2]
[421097650,1777038640525,-2211.0,0.00015976,2]
[421097651,1777038640534,-150.373,0.00015976,2]
[421097652,1777038640544,-150.827,0.00015976,2]
[421097653,1777038640552,-150.358,0.00015976,2]
[421097654,1777038640562,-150.0,0.00015976,2]
[421097655,1777038640572,-10679.0642874,0.00016,2]
[421097656,1777038640583,-1371.56040115,0.00016,2]
[421097657,1777038640787,-794.2615,0.00016,2]
[421097658,1777038640799,-21534.10042376,0.00016,2]
[421097659,1777038640855,-1986.490239,0.00016,2]
[421097662,1777038641845,2337.9305835,9.302e-05,2]
[421097670,1777038643521,-170.454634,0.00012729,2]
[421097671,1777038643530,-170.454634,0.00012983,7]
[421097672,1777038643540,-46059.090732,0.00016,2]
[421097676,1777038647220,-7839.89992089,0.00016,2]
[421097677,1777038647276,-8578.59281448,0.00016,2]
[421097678,1777038867361,2010.0,9.301e-05,2]
[421097685,1777039242595,50357.36940096,7.6e-05,2]
[421097689,1777039344000,5000.0,9.301e-05,2]
[421097690,1777039366097,1101.51139586,9.301e-05,2]
[421097691,1777039424293,5000.0,9.301e-05,2]
[421097692,1777039446483,5000.0,9.301e-05,2]
[421097693,1777039468561,5000.0,9.301e-05,2]
[421097694,1777039491639,5000.0,9.301e-05,2]
[421097695,1777039514349,5000.0,9.301e-05,2]
[421097696,1777039536579,5000.0,9.301e-05,2]
[421097697,1777039558519,5000.0,9.301e-05,2]
[421097698,1777039581060,5000.0,9.301e-05,2]
[421097699,1777039603406,5000.0,9.301e-05,2]
[421097700,1777039625595,5000.0,9.301e-05,2]
[421097701,1777039647459,3553.68886762,9.301e-05,2]
[421097728,1777039832515,-552.0,9.415e-05,2]
[421097729,1777039832525,-220.13174531,9.415e-05,2]
[421097730,1777039832534,-183.99695275,9.42e-05,2]
[421097733,1777039839520,-116.00304725,9.42e-05,2]
[421097734,1777039839530,-300.0,9.42e-05,2]
[421097735,1777039839539,-1200.0,9.42e-05,2]
[421097736,1777039839549,-500.0,9.421e-05,2]
[421097737,1777039839558,-281.65203116,9.421e-05,2]
[421097738,1777039839567,-500.0,9.421e-05,2]
[421097739,1777039839578,-500.0,9.421e-05,2]
[421097740,1777039839588,-500.0,9.421e-05,2]
[421097741,1777039839598,-650.0,9.421e-05,2]
[421097742,1777039839610,-157.51725575,9.421e-05,2]
[421097743,1777039839622,-342.48274425,9.421e-05,2]
[421097744,1777039839632,-500.0,9.421e-05,2]
[421097745,1777039839641,-500.0,9.421e-05,2]
[421097746,1777039839651,-500.0,9.421e-05,2]
[421097747,1777039839660,-244.52889347,9.421e-05,2]
[421097748,1777039839672,-255.47110653,9.421e-05,2]
[421097749,1777039839681,-500.0,9.421e-05,2]
[421097750,1777039839691,-500.0,9.421e-05,2]
[421097751,1777039839701,-500.0,9.421e-05,2]
[421097752,1777039839711,-500.0,9.421e-05,2]
[421097753,1777039839721,-500.0,9.421e-05,2]
[421097754,1777039839730,-500.0,9.421e-05,2]
[421097755,1777039839741,-500.0,9.421e-05,2]
[421097756,1777039839750,-500.0,9.421e-05,2]
[421097757,1777039839760,-500.0,9.421e-05,2]
[421097758,1777039839771,-500.0,9.421e-05,2]
[421097759,1777039839780,-500.0,9.421e-05,2]
[421097760,1777039839790,-500.0,9.421e-05,2]
[421097761,1777039839799,-500.0,9.421e-05,2]
[421097762,1777039839808,-500.0,9.421e-05,2]
[421097763,1777039839818,-500.0,9.421e-05,2]
[421097764,1777039839827,-500.0,9.421e-05,2]
[421097765,1777039839836,-388.16284826,9.421e-05,2]
[421097766,1777039839844,-500.0,9.421e-05,2]
[421097767,1777039839855,-500.0,9.421e-05,2]
[421097768,1777039839865,-500.0,9.421e-05,2]
[421097769,1777039839875,-300.0,9.421e-05,2]
[421097770,1777039839884,-500.0,9.421e-05,2]
[421097771,1777039839894,-500.0,9.421e-05,2]
[421097772,1777039839904,-500.0,9.421e-05,2]
[421097773,1777039839913,-500.0,9.421e-05,2]